Workbook

Sheet 2024 Budget
B1: 2024 | C1: 2024 | D1: 2025
B2: Budget | C2: Actual | D2: Budget
A3: 40102 General Offering | B3: 920000 | C3: 975553.84 | D3: 990000 | E3: +1.5%
A4: 40104 Loose Offering | B4: 16000 | C4: 17780.42 | D4: 18000
A5: 40110 Mission Offering | B5: 9200 | C5: 12162.74 | D5: 12000
A6: 40112 Children's Offering | B6: 2300 | C6: 1257.71 | D6: 1300
A7: 40114 Pastors' Discretionary Offerings | B7: 0 | C7: 8323 | D7: 3400
A8: Total Offering | B8: =SUM(B3:B7) -> 947500 | C8: 1015077.71 | D8: 1024700
A9: Miscellaneous Receipts
A10: 40119 Miscellaneous Receipts | B10: 0 | C10: 468 | D10: 0
A11: 40123 Interest on Investment Acct | B11: 6000 | C11: 13146.73 | D11: 5000
A12: 40125 Released from Restricted Accounts | B12: 4600 | C12: 0 | D12: 0
A13: 40130 Space Fees | B13: 2600 | C13: 1950 | D13: 2600
A14: 40140 Retreat Receipts | B14: 5000 | C14: 0 | D14: 0
A15: 40143 Connections Receipts | B15: 1300 | C15: 596.51 | D15: 500
A16: Total Miscellaneous Receipts | B16: =SUM(B10:B15) -> 19500 | C16: 16161.24 | D16: 8100
A17: Christian Education Receipts
A18: 40134 Other Christian Ed Receipts | B18: 4550 | C18: 1020 | D18: 1200
A19: 40136 Vacation Bible School Receipts | B19: 2500 | C19: 2120 | D19: 2250
A20: 40138 BYG Registration & Fees | B20: 3500 | C20: 2350 | D20: 2500
A21: 40139 SPARK Receipts | B21: 9750 | C21: 7125 | D21: 7500
A22: Total Christian Education Receipts | B22: =SUM(B18:B21) -> 20300 | C22: =SUM(C18:C21) -> 12615 | D22: =SUM(D18:D21) -> 13450
A23: Youth Receipts
A24: 40135 Confirmation Receipts | B24: 17750 | C24: 21125 | D24: 18000
A25: 40476 Youth Trips | B25: 4000 | C25: 0 | D25: 4000
A26: 40478 Summer Stretch Receipts | B26: 8250 | C26: 7350.99 | D26: 8250
A27: 40479 Common Hope Sponsorship | B27: 850 | C27: 822.26 | D27: 840
A28: 40480 Other Youth Receipts | B28: 480 | C28: 360 | D28: 250
A29: 40491 Soup Suppers | B29: 2500 | C29: 1502 | D29: 2000
A30: Total Youth Receipts | B30: =SUM(B24:B29) -> 33830 | C30: =SUM(C24:C29) -> 31160.25 | D30: =SUM(D24:D29) -> 33340
A31: Total Revenues | B31: =B8+B16+B22+B30 -> 1021130 | C31: =C8+C16+C22+C30 -> 1075014.2 | D31: =D8+D16+D22+D30 -> 1079590
A32: Expenses
A33: Benevolence/Social Outreach
A34: 60102 Mission Support - ELCA | B34: 19300 | C34: 19300 | D34: 20000
A35: 60108 Redeemer Lutheran Church | B35: 0 | C35: 790.81 | D35: 1000
A36: 60110 Southern Valley Alliance | B36: 1000 | C36: 1000 | D36: 1000
A37: 60112 Unallocated 2024 | B37: 9000 | C37: 0 | D37: 4000
A38: 60116 ELCA World Hunger et al | B38: 1000 | C38: 1100 | D38: 1000
A39: 60118 Misc Other Donations | B39: 0 | C39: 2440 | D39: 500
A40: 60130 Waconia United Food Shelf | B40: 2000 | C40: 3030.42 | D40: 2000
A41: 60132 Green Lake Lutheran Ministries | B41: 0 | C41: 1000 | D41: 1000
A42: 60135 Public Safety Ministries | B42: 3000 | C42: 3000 | D42: 3000
A43: 60137 Common Hope | B43: 500 | C43: 687.25 | D43: 500
A44: 60138 Cristo Obrero | B44: 5500 | C44: 6364.3 | D44: 5500
A45: 60140 Camperships | B45: 1000 | C45: 0 | D45: 1000
A46: 60146 Lutheran Campus Ministry TC | B46: 1000 | C46: 1440 | D46: 1500
A47: 60154 Love Inc | B47: 1500 | C47: 1933.44 | D47: 4000
A48: 60156 Pastors' Discretionary Outreach | B48: 0 | C48: 8604.72 | D48: 3500
A49: Total Benevolence/Social Outreach | B49: =SUM(B34:B48) -> 44800 | C49: =SUM(C34:C48) -> 50690.94 | D49: =SUM(D34:D48) -> 49500
A50: Christian Education
A51: 60404 SPARK Supplies (delete) | B51: 0 | C51: 2014.33 | D51: 0
A52: 60405 SPARK Bibles | B52: 500 | C52: 406.7 | D52: 500
A53: 60408 Baptism/First Communion | B53: 700 | C53: 267.21 | D53: 500
A54: 60410 BYG Supplies (delete) | B54: 0 | C54: 99.71 | D54: 0
A55: 60412 BYG Bibles | B55: 750 | C55: 0 | D55: 750
A56: 60416 SPARK Expenses | B56: 3300 | C56: 364.82 | D56: 2400
A57: 60418 BYG Expenses | B57: 5225 | C57: 540.22 | D57: 1200
A58: 60424 Vacation Bible School | B58: 1900 | C58: 1903.26 | D58: 1900
A59: 60442 Christian Education Other | B59: 900 | C59: 917.44 | D59: 600
A60: Total Christian Education | B60: =SUM(B51:B59) -> 13275 | C60: =SUM(C51:C59) -> 6513.69 | D60: =SUM(D51:D59) -> 7850
A61: Youth Expenses
A62: 60414 Confirmation | B62: 16000 | C62: 15547.97 | D62: 14000
A63: 60820 Soup Suppers | B63: 2500 | C63: 1954.62 | D63: 2000
A64: 62006 Youth Trips | B64: 4000 | C64: 0 | D64: 4000
A65: 62007 Common Hope Sponsorship | B65: 780 | C65: 835 | D65: 840
A66: 62008 Summer Stretch Expenses | B66: 8000 | C66: 6879.83 | D66: 8250
A67: 62009 Glow | B67: 1000 | C67: 1004.7 | D67: 1200
A68: 62010 Other Youth Expenses | B68: 2500 | C68: 1821.11 | D68: 2500
A69: Total Youth Expenses | B69: =SUM(B62:B68) -> 34780 | C69: =SUM(C62:C68) -> 28043.23 | D69: =SUM(D62:D68) -> 32790
A70: Worship/Music
A71: 60700 Worship/Music Budget | B71: 1500 | C71: 2968.73 | D71: 2800
A72: 60722 Altar Supplies | B72: 1050 | C72: 1404.43 | D72: 1500
A73: 60728 Contemporary Worship | B73: 500 | C73: 1780.23 | D73: 500
A74: 60730 Copy Rights | B74: 1700 | C74: 1598.75 | D74: 1700
A75: 60731 The Youth Choir | B75: 50 | C75: 0 | D75: 50
A76: 60732 Faith Choir | B76: 700 | C76: 141.48 | D76: 700
A77: 60734 Handbells | B77: 300 | C77: 301.42 | D77: 300
A78: 60736 Piano Tuning | B78: 500 | C78: 655 | D78: 700
A79: 60740 Worship Events | B79: 300 | C79: 315.49 | D79: 250
A80: 60742 Summer Worship | B80: 3000 | C80: 2211.68 | D80: 2500
A81: 60744 Guest Musicians | B81: 2500 | C81: 3650 | D81: 3000
A82: Total Worship/Music | B82: =SUM(B71:B81) -> 12100 | C82: =SUM(C71:C81) -> 15027.21 | D82: =SUM(D71:D81) -> 14000
A83: Connections
A84: 60800 Connections Misc | B84: 2000 | C84: 2894.7 | D84: 3000
A85: 60802 Hospitality | B85: 200 | C85: 4.85 | D85: 10
A86: 60804 New Member Expense | B86: 500 | C86: 947.09 | D86: 850
A87: 60807 Connections Cafe | B87: 3000 | C87: 1900.74 | D87: 1300
A88: 60808 SAGES | B88: 500 | C88: 0 | D88: 500
A89: 60815 Small Groups | B89: 500 | C89: 69.39 | D89: 840
A90: 60816 Adult Education | B90: 500 | C90: 0 | D90: 500
A91: 60817 Moms Connect Childcare | B91: 100 | C91: 0 | D91: 0
A92: 60819 Retreats | B92: 5000 | C92: 0 | D92: 0
A93: 60826 Media / Devotionals | B93: 1000 | C93: 909.04 | D93: 750
A94: Total Connections | B94: =SUM(B83:B93) -> 13300 | C94: =SUM(C83:C93) -> 6725.81 | D94: =SUM(D83:D93) -> 7750
A95: Stewardship
A96: 60500 Mailing and Supplies | B96: 1500 | C96: 1825 | D96: 2000
A97: 60502 Envelopes | B97: 2100 | C97: 3099.37 | D97: 3100
A98: Total Stewardship | B98: =SUM(B96:B97) -> 3600 | C98: =SUM(C96:C97) -> 4924.37 | D98: =SUM(D96:D97) -> 5100
A99: Pastoral Expense
A100: 60202 Pastors Salaries and Housing Allow | B100: 178264 | C100: 177387 | D100: 187460.5
A101: 60203 Social Security Allowance | B101: 12843 | C101: 13020.96 | D101: 13623.96
A102: 60206 Pension & Insurance | B102: 63319 | C102: 62882.03 | D102: 57246
A103: 60208 Mileage | B103: 1000 | C103: 2515.18 | D103: 2500
A104: 60210 Book Fund-Sr Pastor | B104: 300 | C104: 425.06 | D104: 300
A105: 60212 Book Fund-Assoc Pastor | B105: 300 | C105: 214.99 | D105: 300
A106: 60214 Continuing Ed-Sr Pastor | B106: 1500 | C106: 2610 | D106: 390
A107: 60216 Continuing Ed-Assoc Pastor | B107: 3700 | C107: 4175 | D107: 1025
A108: 60222 Pastoral Care Expenses | B108: 100 | C108: 462.59 | D108: 450
A109: 60344 Pastors Cell Phone Allowance | B109: 1100 | C109: 1080 | D109: 1080
A110: Total Pastoral Expense | B110: =SUM(B100:B109) -> 262426 | C110: =SUM(C100:C109) -> 264772.81 | D110: =SUM(D100:D109) -> 264375.46
A111: Staff Expense
A112: 60230 Staff Salaries | B112: 320075 | C112: 321892.79 | D112: 336398.76
A113: 60232 FICA Expense | B113: 24333 | C113: 24696.9 | D113: =D112*0.0765 -> 25734.50514
A114: 60234 Staff Cell Phone Allowance | B114: 1080 | C114: 1080 | D114: 1080
A115: 60236 Sub Pianist | B115: 800 | C115: 200 | D115: 800
A116: 60238 Staff Expense | B116: 2500 | C116: 2316.29 | D116: 2500
A117: 60240 Continuing Ed-Staff | B117: 2500 | C117: 793.19 | D117: 1000
A118: 60242 Workers Comp. Ins. | B118: 4200 | C118: 4198 | D118: 4200
A119: 60243 Staff Pension/Insurance | B119: 23954 | C119: 23770.25 | D119: 24596.53
A120: Total Staff Expense | B120: =SUM(B112:B119) -> 379442 | C120: =SUM(C112:C119) -> 378947.42 | D120: =SUM(D112:D119) -> 396309.7951
A121: IT/Communications
A122: 60320 Cloud Services | B122: 7824 | C122: 6911.9 | D122: 6434
A123: 60321 Computer Hardware/Software | B123: 1600 | C123: 3852.8 | D123: 1790
A124: 60334 Marketing | B124: 8930 | C124: 6236.8 | D124: 9198
A125: 60336 Copy Machine Maintenance | B125: 9130 | C125: 9060 | D125: 9180
A126: 60916 Telephone/Internet | B126: 6433 | C126: 6322.46 | D126: 6433
A127: 60919 Other Tech Repair/Mtnce | B127: 500 | C127: 1673.77 | D127: 515
A128: Total IT/Communications | B128: =SUM(B122:B127) -> 34417 | C128: =SUM(C122:C127) -> 34057.73 | D128: =SUM(D122:D127) -> 33550
A129: Administration
A130: 60335 Processing Charges | B130: 9900 | C130: 10096.59 | D130: 11000
A131: 60340 Synod Event Participation | B131: 1200 | C131: 2011.95 | D131: 2100
A132: 60342 Office Supplies | B132: 3600 | C132: 4129.2 | D132: 3500
A133: 60345 Consulting Fees | B133: 0 | C133: 2500 | D133: 250
A134: 60346 Payroll Service | B134: 4500 | C134: 4801.23 | D134: 5000
A135: 60348 Postage | B135: 2900 | C135: 1505.04 | D135: 2700
A136: Total Administration | B136: =SUM(B130:B135) -> 22100 | C136: =SUM(C130:C135) -> 25044.01 | D136: =SUM(D130:D135) -> 24550
A137: Property
A138: 60902 Building Maintenance | B138: 16000 | C138: 13258.67 | D138: 16000
A139: 60904 Kitchen Mtnce/Supplies | B139: 1100 | C139: 1783.6 | D139: 4257
A140: 60906 Grounds Keeping | B140: 10000 | C140: 8722.62 | D140: 8750
A141: 60908 Insurance/ Bldg. | B141: 15355 | C141: 11945.47 | D141: 15355
A142: 60912 Electrical Service | B142: 40250 | C142: 33388.98 | D142: 36225
A143: 60914 Gas Service | B143: 12650 | C143: 7863.54 | D143: 12650
A144: 60918 Sewer & Water | B144: 3700 | C144: 3896.21 | D144: 3700
A145: 60920 Sanitation | B145: 2500 | C145: 2726.36 | D145: 2500
A146: 60924 Special Assessments | B146: 3500 | C146: 3434.4 | D146: 3500
A147: 60950 Mortgage Interest | B147: 79955 | C147: 79955.45 | D147: 75983
A148: 60975 Mortgage Principal | B148: 98761 | C148: 98760.55 | D148: 102733
A149: Total Property | B149: =SUM(B138:B148) -> 283771 | C149: =SUM(C138:C148) -> 265735.85 | D149: =SUM(D138:D148) -> 281653
A150: Total Expenses | B150: =B49+B60+B69+B82+B94+B98+B110+B120+B128+B136+B149 -> 1104011 | C150: =C49+C60+C69+C82+C94+C98+C110+C120+C128+C136+C149 -> 1080483.07 | D150: =D49+D60+D69+D82+D94+D98+D110+D120+D128+D136+D149 -> 1117428.255 | E150: +3.4%
A151: Net Total | B151: =B31-B150 -> -82881 | C151: =C31-C150 -> -5468.87 | D151: =D31-D150 -> -37838.25514
